Cogmind - Beta 15 @@@ ROGUE MODE // 2025.05.18 @ 18:46:20 Player: Sap Result: Destroyed by Q6-HPJ(R) with Subdweller Beam Cannon Performance ------------- Evolutions (0) 0 Regions Visited (2) 400 Robots Destroyed (8) 40 Value Destroyed (131) 131 Prototype IDs (0) 0 Alien Tech Used (0) 0 Bonus (0) 0 TOTAL SCORE: 571 Bonus ------- None Cogmind --------- Core Integrity 0/250 Matter 300/300 Energy 100/100 System Corruption 0% Temperature Cool (10) Movement Flying (40) Location -10/Subcaves Parts ------- > --- POWER (1) -------- (None) > --- PROPULSION (2) --- Flight Unit > --- UTILITY (2) ------ Heat Sink > --- WEAPON (2) ------- (None) > --- INVENTORY (5) ---- Ion Engine Subdweller Power Source Aluminum Leg Flight Unit Peak State ------------ > --- POWER ------------ Ion Engine > --- PROPULSION ------- Flight Unit Flight Unit > --- UTILITY ---------- Heat Sink Tech Extrapolator > --- WEAPON ----------- Medium Laser > --- INVENTORY -------- Ion Engine Subdweller Power Source Aluminum Leg Flight Unit [Rating: 11] Favorites ----------- Power Ion Engine Engine Ion Engine Propulsion Aluminum Leg Leg Aluminum Leg Flight Unit Flight Unit Utility Heat Sink Device Heat Sink Storage Small Storage Unit Processor Tech Extrapolator Weapon Assault Rifle Energy Gun Medium Laser Ballistic Gun Assault Rifle Build | -11 -10 -10 ------- Run | Yrd Mat Sub Slots Evolved . | . . . Power . | . . . Propulsion . | . . . Utility . | . . . Weapon . | . . . Parts Attached 16 | 6 1 9 Power 3 | 1 . 2 Engine 3 | 1 . 2 Core . | . . . Reactor . | . . . Propulsion 5 | 2 . 3 Treads . | . . . Leg 2 | 2 . . Wheel . | . . . Hover . | . . . Flight 3 | . . 3 Utility 3 | 1 1 1 Device 1 | . 1 . Storage 1 | 1 . . Processor 1 | . . 1 Hackware . | . . . Protection . | . . . Artifact . | . . . Weapon 5 | 2 . 3 Energy Gun 2 | . . 2 Energy Cannon . | . . . Ballistic Gun 3 | 2 . 1 Ballistic Cannon . | . . . Launcher . | . . . Special Weapon . | . . . Impact Weapon . | . . . Slashing Weapon . | . . . Piercing Weapon . | . . . Special Melee Weapon . | . . . Unidentified Prototypes . | . . . Parts Lost 11 | . . 11 Power 2 | . . 2 Propulsion 4 | . . 4 Utility 1 | . . 1 Weapon 4 | . . 4 Highest Loss Streak 6 | . . 6 To Critical Strikes . | . . . Average Backups 6 | 4 7 6 Power 2 | . 2 2 Propulsion 2 | 2 3 2 Utility . | . . . Weapon 1 | . 1 1 Tool/Special . | . . . Unused Backups 9 | . 4 5 Power 2 | . . 2 Propulsion 6 | . 4 2 Utility . | . . . Weapon 1 | . . 1 Tool/Special . | . . . Average Slot Usage (%) 88 | . 97 82 Engine 12 | . 14 11 Leg 21 | . 28 17 Flight 4 | . . 7 Device 13 | . 12 14 Storage 10 | . 14 9 Energy Gun 1 | . . 2 Ballistic Gun 22 | . 28 19 Peak Build Rating 11 | 6 7 11 Average Rating 6 | 4 6 6 On Entrance 4 | . 6 7 Naked Turns . | . . . Heaviest Build 17 | 13 14 17 Greatest Support 20 | 20 20 20 Greatest Overweight (x) 1 | 1 . 1 Average Overweight (x) . | . . . Largest Inventory Capacity 8 | 8 8 8 Average Capacity 7 | 7 8 6 Most Carried 8 | 7 8 8 Average Carried 6 | 4 7 6 Final Capacity 8 | 8 8 5 Final Carried 8 | 6 8 4 Class Distribution -------------------- 89% | Mutant 10% | Scavenger-Mutant Dominant Class ---------------- Mutant | -10/Materials Mutant | -10/Subcaves Resources | -11 -10 -10 ----------- Run | Yrd Mat Sub Matter Collected 445 | 213 89 143 Remotely . | . . . Salvage Created 167 | . 61 106 Parts 14 | . 6 8 Haulers Intercepted . | . . . Recyclers Shooed 1 | . 1 . Parts Field Recycled . | . . . Retrieved Matter . | . . . Parts Self-Destructed 9 | . . 9 Prevented . | . . . Kills | -11 -10 -10 ------- Run | Yrd Mat Sub Combat Hostiles Destroyed 7 | . 3 4 Guns 7 | . 3 4 Classes Destroyed 3 | . 2 1 Worker 1 | . 1 . Swarmer 5 | . 3 2 Subdweller 2 | . . 2 Best Kill Streak 4 | . 4 2 Combat Bots Only 3 | . 3 2 Max Kills in Single Turn 1 | . 1 1 Gunslinging . | . . . Exploded . | . . . Melee . | . . . Uniques/NPCs Destroyed . | . . . Combat | -11 -10 -10 -------- Run | Yrd Mat Sub Hostile Shots Fired 82 | . 15 67 Missed 31 | . 5 26 Hits 51 | . 10 41 Projectile 51 | . 10 41 Critical Strikes 2 | . . 2 Damage Taken 986 | . 75 911 Core 262 | . 23 239 Absorbed by Shields . | . . . Core Remaining (%) 100 | 100 . . Volleys Fired 30 | . 8 22 Largest 2 | . 2 2 Hottest 70 | . 40 70 Shots Fired 52 | . 16 36 Gun 52 | . 16 36 Cannon . | . . . Launcher . | . . . Special . | . . . Kinetic 42 | . 16 26 Thermal 10 | . . 10 Explosive . | . . . Electromagnetic . | . . . Robot Hit Streak 5 | . 3 5 Robot Miss Streak 4 | . 4 2 Penetration Max . | . . . Secondary Targets 1 | . 1 . Max Gunslinging Chain 1 | . 1 . Shots Hit Robots 31 | . 8 23 Core Hits 10 | . 4 6 Critical Kills 1 | . 1 . Critical Parts Destroyed . | . . . Critical Strikes 1 | . 1 . Destroy 1 | . 1 . Melee Attacks . | . . . Impact . | . . . Slashing . | . . . Piercing . | . . . Sneak Attacks . | . . . Combat Hostiles . | . . . Follow-up Attacks . | . . . Damage Inflicted 454 | . 106 348 Guns 454 | . 106 348 Cannons . | . . . Explosions . | . . . Melee . | . . . Ramming . | . . . Kinetic 380 | . 106 274 Thermal 74 | . . 74 Explosive . | . . . Electromagnetic . | . . . Impact . | . . . Slashing . | . . . Piercing . | . . . Highest Corruption . | . . . Average Corruption . | . . . Corruption Purged . | . . . Corruption Blocked . | . . . Overload Shots . | . . . Overflow Damage . | . . . Projectiles . | . . . Explosions . | . . . Melee . | . . . Knockbacks . | . . . Impact . | . . . Kinetic . | . . . Secondary . | . . . Self-Inflicted Damage . | . . . Shots . | . . . Rammed . | . . . Targets Rammed . | . . . Kicked . | . . . Crushed . | . . . Highest Temperature 235 | . . 235 Average Temperature 147 | . . 147 Received Heat Transfer 722 | . . 722 Siege Activations . | . . . Martial Activations . | . . . Shielding Activations . | . . . Robots Disrupted . | . . . Combat Hostiles . | . . . Robots Corrupted . | . . . Combat Hostiles . | . . . Parts Fried . | . . . Impact Corruptions . | . . . Robots Melted . | . . . Combat Hostiles . | . . . Parts Melted . | . . . Heat Transferred 222 | . . 222 Parts Sabotaged . | . . . Parts Stolen . | . . . Parts Stripped . | . . . Power Chain Reactions . | . . . Alert | -11 -10 -10 ------- Run | Yrd Mat Sub Maximum Alert Level . | . . . Low Security (%) 100 | 100 100 . Level 1 . | . . . Level 2 . | . . . Level 3 . | . . . Level 4 . | . . . Level 5 . | . . . High Security . | . . . Max Security . | . . . Peak Influence 65 | . 65 . Initial . | . . . Average 15 | . 19 . Influence Increases 115 | . 75 40 Destroy 0b10 Robot/C 100 | . 60 40 Destroy 0b10 Robot/NC 5 | . 5 . Destroy Leader 10 | . 10 . Influence Decreases 115 | . 75 40 Time Decay 105 | . 75 30 Lost Part 10 | . . 10 Squads Dispatched . | . . . Investigation . | . . . Extermination . | . . . Reinforcement . | . . . Assault . | . . . Garrison . | . . . Intercept . | . . . Searches Triggered . | . . . Construction Impeded . | . . . Haulers Reinforced . | . . . Active Scanning Responses . | . . . Cargo Convoy Interrupts . | . . . Stealth | -11 -10 -10 --------- Run | Yrd Mat Sub Distress Signals . | . . . Communications Jammed . | . . . Distress Signals . | . . . Times Spotted 14 | . 3 11 Peak Tracking Total 4 | . 3 4 Tactical Retreats 1 | . . 1 Traps | -11 -10 -10 ------- Run | Yrd Mat Sub Traps Triggered . | . . . Indirectly . | . . . Trap Hack Attempts . | . . . Triggered . | . . . Disarmed . | . . . Reprogrammed . | . . . Reused . | . . . Traps Extracted . | . . . Installed . | . . . Triggered . | . . . Machines | -11 -10 -10 ---------- Run | Yrd Mat Sub Machines Disabled . | . . . Max in Single Turn . | . . . Machines Repaired . | . . . Machines Dismantled . | . . . Machines Sabotaged . | . . . Overloaded Fab Kills . | . . . Hacking | -11 -10 -10 --------- Run | Yrd Mat Sub Machines Accessed 1 | . 1 . Terminals 1 | . 1 . Fabricators . | . . . Repair Stations . | . . . Recycling Units . | . . . Scanalyzers . | . . . Garrison Access . | . . . Total Hacks 2 | . 2 . Successful 2 | . 2 . Failed . | . . . Catastrophic . | . . . Database Lockouts . | . . . Manual 1 | . 1 . Terminals 2 | . 2 . Fabricators . | . . . Repair Stations . | . . . Recycling Units . | . . . Scanalyzers . | . . . Garrison Access . | . . . Terminal Hacks 1 | . 1 . Robot Analysis 1 | . 1 . Fabricator Hacks . | . . . Repair Station Hacks . | . . . Recycling Unit Hacks . | . . . Scanalyzer . | . . . Garrison Access Hacks . | . . . Unauthorized Hacks 1 | . 1 . Terminals 1 | . 1 . Track 1 | . 1 . Fabricators . | . . . Repair Stations . | . . . Recycling Units . | . . . Scanalyzers . | . . . Garrison Access . | . . . Data Cores Recovered . | . . . Used . | . . . Hacking Detections 1 | . 1 . Full Trace Events . | . . . Feedback Events . | . . . Feedback Blocked . | . . . Robot Schematics Acquired . | . . . Robots Built . | . . . Authchips . | . . . Time . | . . . Total Robot Build Rating . | . . . Part Schematics Acquired . | . . . Parts Built . | . . . Authchips . | . . . Time . | . . . Total Part Build Rating . | . . . Parts Repaired . | . . . Time . | . . . Parts Recycled . | . . . Recycled Matter . | . . . Retrieved Matter . | . . . Retrieved Components . | . . . Parts Scanalyzed . | . . . Part Schematics Acquired . | . . . Parts Damaged . | . . . Bothacking | -11 -10 -10 ------------ Run | Yrd Mat Sub Used RIF Installer . | . . . Robots Hacked . | . . . Non-combat . | . . . Combat . | . . . Robot Hacks Applied . | . . . Relay Couplers Released . | . . . Fabnet Peak Effective % . | . . . Robots Rewired . | . . . Allies Hacked . | . . . Hacks Repelled . | . . . Allies | -11 -10 -10 -------- Run | Yrd Mat Sub Total Allies . | . . . Largest Group . | . . . Highest-Rated Group . | . . . Highest-Rated Ally . | . . . Total Orders . | . . . Ally Attacks . | . . . Total Damage . | . . . Kills . | . . . Allies Corrupted . | . . . Allies Melted 1 | . . 1 Intel | -11 -10 -10 ------- Run | Yrd Mat Sub Active Infowar (turns) . | . . . Robot Analysis Total 1 | . 1 . Derelict Logs Recovered . | . . . Drone Launches . | . . . Drone Recoveries . | . . . Exploration | -11 -10 -10 ------------- Run | Yrd Mat Sub Turns Passed 878 | 88 290 500 Spaces Moved 771 | 59 136 576 Core 10 | 10 . . Treads . | . . . Legs 396 | 49 136 211 Wheels . | . . . Hover . | . . . Flight 365 | . . 365 Fastest Speed 37 | 50 120 37 Average Speed 82 | 124 120 68 Slowest Speed 190 | 190 120 120 Overloaded Moves . | . . . Propulsion Burnouts . | . . . Robots Hopped 4 | . . 4 Potential Cave-ins . | . . . Cave-ins Triggered . | . . . Exploration Rate (%) 13 | 4 15 20 Regions Visited 2 Branch Regions 1 Pre-discovered Areas . | . . . Known Exits Taken . | . . . Unknown Exits Taken 2 | 1 1 . Scrap Searched . | . . . Spaces Dug . | . . . Terrain Destroyed . | . . . Melee . | . . . Projectile . | . . . AOE . | . . . Terrain Rammed . | . . . Walls Destroyed . | . . . Machines Disabled . | . . . Actions | -11 -10 -10 --------- Run | Yrd Mat Sub Total 963 | 71 250 642 Wait 120 | . 96 24 Move 761 | 58 135 568 Hop 4 | . . 4 Pick Up 16 | 7 6 3 Fast Attach 11 | 5 1 5 Attach 8 | 1 . 7 Detach 3 | . . 3 Swap . | . . . Drop 10 | . 4 6 Fire 30 | . 8 22 Melee . | . . . Ram . | . . . Kick . | . . . Crush . | . . . Escape Stasis . | . . . Rewire . | . . . Trap . | . . . Miscellaneous . | . . . Route ------- -11/Scrapyard -10/Materials -10/Subcaves (discovered 1 exit: [Scr]) History --------- Turn | Location | Event 7 | -11/Scrapyard | Discovered new exit (range 16) 89 | -11/Scrapyard | Entered Materials 90 | -10/Materials | Met a group of wandering Federalists 309 | -10/Materials | Build established: Mutant 358 | -10/Materials | Discovered new exit (range 3) 379 | -10/Materials | Entered Subcaves 380 | -10/Subcaves | Continued accompanying wandering Federalists (5) 380 | -10/Subcaves | Approached by a straggling Scientist 525 | -10/Subcaves | A swath of the cavern ceiling suddenly collapsed 733 | -10/Subcaves | Lost 6 parts (1p3n2w) 757 | -10/Subcaves | Core integrity fell below 50% 835 | -10/Subcaves | Core integrity fell below 20% 878 | -10/Subcaves | Lost 4 parts (1p1n1u1w) 879 | -10/Subcaves | Destroyed by Q6-HPJ(R) with Subdweller Beam Cannon Last Messages --------------- 00767_ S-10 Pest destroyed. 00769_ Flight Unit fries itself beyond repair. 00770_ Lgt. Assault Rifle fries itself beyond repair. 00771_ Acquired Flight Unit. 00773_ Flight Unit fries itself beyond repair. 00773_ Acquired 10 matter. 00773_ Acquired Flight Unit. 00774_ Acquired 13 matter. 00775_ Acquired 8 matter. 00778_ Acquired 4 matter. OE-X96(c): "We're getting close, I can feel it." 00803_ Acquired 6 matter. 00813_ Acquired Tech Extrapolator. 00814_ Tech Extrapolator violently self-destructs. 00814_ Acquired 10 matter. 00843_ Flight Unit destroyed. 00845_ Ion Engine destroyed. 00847_ Med. Laser destroyed. Map ----- +----------------------------------------------------+ | ??????????????????????????????????????????????? | | ??????????????????????????????????????????????? | | ??????????????????????????????????????????????? | | ??????????????????????????????????????????????? | | ??????????????????????????????????????????????? | | ??????????????????????????????????????????????? | | ??????????????????????????????????????????????? | | ??????????????????????????????????????????????? | | ??????????????????????????????????????????????? | | ??????????????????????????????????????????????? | | ??????????????????????????????????????????????? | | ??????????????????????????????????????????????? | | ??????????????????????????????????????????????? | | ???????????????????????????####???????????????? | | ???????????????????????????# #???????????????? | | ???????????????????######### ##??????????????? | | ???????????????????# #"# #??????????????? | | ???????????????????## " #??????????????? | | ??????????????????## " #??????????????? | | ??????????????????# #%# ### ##?????????????? | | ??????????????????# ### ## #?????????????? | | ??????????????????# ## ##" #?????????????? | | ??????????????????# ## ###"#?????????????? | | ??????????????????# ## #?###?????????????? | | ??????????????????# R# #?????????????????? | | ??????????????????# @ R ##?????????????????? | | ??????????????????## #####??????????????????? | | ???????????????????## ##????????????????????? | | ???????????????????# ##???????????????????? | | ????????????????#### ##??????????????????? | | ??????????????### # ####???????????????? | | ??????????????# ###?????????????? | | ??????????????# #???#######???? | | ??????????????# ###### ####? | | ??????????????## ## ## ## ## # ## | | ??????????????# ?# ### ### %# # | | ??????????????## ?## ######?# ## # | | ??????????????# ?# #???# ### ### ## | | ??????????????## ### #?### &# # ### ##? | | ?????????????### #?# " # #####?? | | ?????????????# #?"" ## ###??? | | ?????????????### ##" # #??? | | ??????????????## ## " #??? | | ??????????????# # & # # #" ##??? | | ??????????????# # ### # " ####### ##???? | | ????????????? # #?#### ####### #???? | | ????????????## ## #????# """""#""""####? | | ?????????????#?# ##????#### """""#"""###"#? | | ???????????????## #????????## """""#"""""""## | | ???????????????# ##?????????# "" "#""""""" # | +----------------------------------------------------+ Best States ------------- Heat Dissipation 35 Energy Generation 10 Energy Capacity 250 Matter Stores 300 Matter Capacity 300 Sight Range 16 Terrain Scan Density 10 Evasion (%) 62 Item Schematics ----------------- None Robot Schematics ------------------ None Fabricated ------------ Nothing Repaired ---------- Nothing Alien Tech Used ----------------- None Achievements -------------- None Challenges ------------ None Game ------ Seed TacticalRagnarokSabre Manual? 0 Play Time 00:18:12 Cumulative 35.2 hours Start 2025.05.18 @ 18:28:48 End 2025.05.18 @ 18:46:20 Sessions 1 Manual Loads 0 Difficulty Rogue Special Mode None Game No. 32 Rogue 31 Adventurer 0 Explorer 1 Win Type - Total 0 Types 0/0/0/0/0/0/0/0/0/0 Lore% 26 Gallery% 27 Achievement% 20 Wizard Run 0 Options --------- Layout 1 ASCII 0 Keyboard 0 Movement Vi Keybinds 1 Fullscreen 1 Font 18/SmallcapsGlow Map View 50x40 Zoom Use 0% Tactical HUD 1 Map Filters NONE Filters NONE Steam 1 RUN: 7b7b097b-ec52-40f5-97ee-3c1a4e0a2085